bitfinex/quotes_ETHUSD_20251221
["timestamp","ask_amount","ask_price","bid_price","bid_amount"]
[1766336838573,1.00585238,2987.6,2986.5,0.001]
[1766336838744,2.5805,2987.5,2986.5,0.001]
[1766336839145,1.44385238,2987.6,2986.5,0.001]
[1766336839367,1.44385238,2987.6,2986.5,0.7159401]
[1766336839878,0.6777,2987.3,2986.5,0.7159401]
[1766336840049,2.5805,2987.3,2986.5,0.7159401]
[1766336840977,2.5805,2987.3,2986.6,3.34828902]
[1766336842085,2.5805,2987.3,2986.5,4.0643071]
[1766336842258,2.5805,2987.3,2986.5,3.9806223]
[1766336845381,4.59648644,2987.4,2986.5,3.9806223]
[1766336845678,2.5805,2987.3,2986.5,3.9806223]
[1766336847781,2.013,2987.2,2986.5,3.9816223]
[1766336848083,2.5805,2987.3,2986.5,3.85070867]
[1766336848477,5.20052032,2987.4,2986.5,3.85070867]
[1766336848683,2.5805,2987.2,2986.5,3.85070867]
[1766336849285,5.20052032,2987.4,2986.5,3.85070867]
[1766336849581,1.9028,2987.3,2986.5,3.85070867]
[1766336849770,2.5805,2987.2,2986.5,3.85070867]
[1766336850270,2.5805,2987.2,2986.6,0.4301125]
[1766336851388,1.44385238,2987.6,2986.7,3.34817691]
[1766336851558,1.44385238,2987.6,2986.6,3.77836678]
[1766336852056,2.5916,2987.5,2986.6,3.77836678]
[1766336852256,1.9132,2987.5,2986.6,3.77836678]
[1766336852456,0.6784,2987.4,2986.6,3.77836678]
[1766336852677,2.5916,2987.3,2986.6,3.77836678]
[1766336852976,2.5916,2987.3,2986.7,0.42807085]
[1766336854458,2.5916,2987.3,2986.7,3.7762397]
[1766336854658,2.5916,2987.3,2986.7,0.42807085]
[1766336855680,0.6803,2987.4,2986.5,0.001]
[1766336855857,2.6279,2987.2,2986.5,0.001]
[1766336857597,4.59848644,2987.3,2986.5,0.001]
[1766336857778,4.59648644,2987.0,2986.5,0.001]
[1766336857978,2.6279,2986.9,2986.5,0.001]
[1766336858185,4.59848644,2987.3,2986.5,0.001]
[1766336858492,2.6279,2987.1,2986.5,0.001]
[1766336859474,4.59848644,2987.3,2986.5,0.001]
[1766336859988,4.59648644,2987.0,2986.5,0.001]
[1766336860169,0.6803,2986.8,2986.5,0.001]
[1766336860368,2.6279,2986.7,2986.5,0.001]
[1766336862498,2.89069,2986.7,2986.5,0.001]
[1766336862866,2.6279,2986.6,2986.3,0.001]
[1766336863066,2.6279,2986.5,2986.3,0.001]
[1766336863696,2.89069,2986.7,2986.3,0.001]
[1766336864800,2.6279,2986.5,2986.3,0.001]
[1766336866171,4.85927644,2986.7,2986.3,0.001]
[1766336866498,0.6803,2986.4,2986.3,0.001]
[1766336866698,1.9476,2986.5,2986.3,0.001]
[1766336868770,0.6803,2986.2,2985.7,0.001]
[1766336868972,5.03448644,2986.4,2985.4,0.001]
[1766336868973,7.22438644,2985.8,2985.4,0.001]
[1766336869191,2.6279,2985.8,2985.4,0.001]
[1766336869581,4.59648644,2985.9,2985.4,0.001]
[1766336869808,2.6279,2985.7,2985.4,0.001]
[1766336870166,0.438,2986.1,2985.4,0.001]
[1766336870870,0.438,2986.1,2985.4,0.01441629]
[1766336872099,2.6279,2986.0,2985.4,0.01441629]
[1766336872306,0.6803,2985.9,2985.4,0.01441629]
[1766336872504,2.6279,2985.7,2985.4,0.01441629]
[1766336872803,5.03448644,2986.1,2985.4,0.01441629]
[1766336874605,2.6279,2986.0,2985.4,0.01441629]
[1766336874774,0.6803,2985.9,2985.4,0.01441629]
[1766336874976,0.6803,2985.7,2985.4,0.01441629]
[1766336875176,1.9476,2985.8,2985.4,0.01441629]
[1766336875509,0.852075,2985.8,2985.4,0.01441629]
[1766336876803,0.852075,2985.8,2985.4,0.001]
[1766336877194,0.6803,2985.8,2985.4,0.001]
[1766336877505,2.6279,2985.6,2985.4,0.001]
[1766336877718,1.9476,2985.5,2985.4,0.001]
[1766336878702,2.6279,2985.5,2985.4,0.001]
[1766336880025,4.59648644,2985.8,2985.2,0.001]
[1766336880227,1.9476,2985.4,2985.2,0.001]
[1766336880799,0.4869,2985.4,2985.2,0.001]
[1766336881299,5.08874499,2985.4,2985.1,0.601]
[1766336881494,0.6803,2985.5,2985.1,0.601]
[1766336882929,2.6279,2985.5,2985.1,0.601]
[1766336886527,0.603,2986.2,2985.1,1.01732835]
[1766336886824,1.9395,2985.9,2985.2,0.2325]
[1766336887022,5.03984499,2986.1,2985.2,0.2325]
[1766336887229,0.6861,2985.9,2985.2,0.2325]
[1766336887405,2.6256,2985.8,2985.2,0.2325]
[1766336887601,2.6256,2985.8,2985.2,0.69608875]
[1766336889240,1.9395,2985.7,2985.2,0.69608875]
[1766336889442,2.6256,2985.7,2985.2,0.69608875]
[1766336889939,2.6256,2985.7,2985.2,0.46358875]
[1766336890157,1.9395,2985.6,2985.2,0.46358875]
[1766336890732,1.9395,2985.6,2985.3,0.46556504]
[1766336890932,1.9395,2985.6,2985.1,0.8421]
[1766336897231,1.9415,2985.6,2985.1,0.8421]
[1766336898352,0.6861,2985.7,2985.1,0.8421]
[1766336898750,0.438,2986.1,2985.3,0.2653]
[1766336898939,1.1241,2986.1,2985.3,0.2653]
[1766336899142,1.1241,2986.1,2985.4,0.2653]
[1766336899379,0.6861,2986.0,2985.4,0.2653]
[1766336899555,0.6861,2986.0,2985.2,0.01341629]
[1766336900371,5.03984499,2986.1,2985.2,0.01341629]
[1766336900372,0.6861,2985.8,2985.2,0.01341629]
[1766336900576,2.6256,2985.8,2985.2,0.01341629]
[1766336900778,1.9395,2985.8,2985.3,0.2703]
[1766336901451,2.6256,2985.8,2985.3,0.2703]
[1766336902675,7.22744499,2985.8,2985.3,0.2703]
[1766336903985,5.28794499,2985.8,2985.3,0.2703]
[1766336904177,5.28794499,2985.8,2985.2,0.01341629]
[1766336904178,1.9395,2985.7,2985.2,0.01341629]
[1766336904384,1.9395,2985.7,2985.2,0.48287397]
[1766336904793,1.9395,2985.7,2985.2,0.76287397]
[1766336904969,4.60184499,2986.0,2985.2,0.48287397]
[1766336905277,2.3775,2985.9,2985.3,0.28]
[1766336905452,3.0636,2985.9,2985.3,0.28]
[1766336905652,0.002,2985.8,2985.3,0.75138404]
[1766336905883,1.9415,2985.8,2985.3,0.75138404]
[1766336907068,2.6276,2985.8,2985.3,0.75138404]
[1766336907274,0.002,2985.8,2985.4,0.2847]
[1766336907881,0.002,2986.2,2985.5,0.96001629]
[1766336908086,0.002,2986.2,2985.7,0.7246]
[1766336908283,0.002,2986.2,2985.8,0.7246]
[1766336908898,0.002,2986.2,2985.6,0.7246]
[1766336909570,0.002,2986.2,2985.4,1.1626]
[1766336909797,0.6861,2986.1,2985.4,1.63795155]
[1766336909995,0.6861,2985.9,2985.4,1.63795155]
[1766336910192,2.6256,2985.9,2985.4,0.91335155]
[1766336910400,1.9395,2985.8,2985.4,0.438]
[1766336910891,2.6256,2986.1,2985.5,0.7246]
[1766336911095,2.6256,2986.1,2985.5,0.9752]
[1766336911294,0.002,2986.2,2985.8,0.7246]
[1766336913496,0.002,2986.2,2985.7,0.2506]
[1766336913497,1.9415,2986.2,2985.7,0.2506]
[1766336913697,2.6276,2986.2,2985.6,0.7246]
[1766336914199,2.6276,2986.2,2985.6,1.20365168]
[1766336914972,2.135,2986.1,2985.6,1.20365168]
[1766336917076,0.7837,2985.9,2985.1,0.001]
[1766336917282,2.9187,2985.9,2985.3,1.0561]
[1766336917588,2.135,2985.9,2985.5,0.7338]
[1766336919408,2.9187,2986.0,2985.5,1.17523463]
[1766336919608,4.60319526,2986.2,2985.6,0.7338]
[1766336919804,7.52189526,2986.2,2985.6,1.0813]
[1766336920311,2.135,2986.1,2985.6,1.0813]
[1766336920489,2.9187,2986.1,2985.6,1.0813]
[1766336922214,0.002,2986.0,2985.6,1.0813]
[1766336922424,2.015,2986.8,2985.5,0.7338]
[1766336922741,0.002,2986.8,2985.8,0.7338]
[1766336923031,0.002,2986.8,2986.0,0.7338]
[1766336923235,0.002,2986.8,2986.2,0.7338]
[1766336923617,0.002,2986.8,2986.2,6.69739596]
[1766336923928,0.002,2987.4,2986.3,0.7338]
[1766336924089,0.002,2987.4,2986.5,0.7338]
[1766336924289,2.137,2987.4,2986.7,0.7338]
[1766336925139,0.002,2987.4,2986.7,0.7338]
[1766336925502,0.002,2987.4,2986.9,0.7401]
[1766336925705,0.002,2987.4,2987.0,1.1718]
[1766336927186,0.7857,2987.4,2987.0,0.438]
[1766336927392,0.7857,2987.4,2986.5,3.34833192]
[1766336927393,2.135,2987.3,2986.5,3.34833192]
[1766336927592,2.9187,2986.9,2986.2,0.7338]
[1766336927825,2.9187,2986.9,2986.4,0.438]
[1766336932054,2.9187,2986.9,2986.4,3.78647768]
[1766336932226,2.135,2986.9,2986.4,1.1718]
[1766336932427,2.135,2987.0,2986.5,0.7338]
[1766336932750,2.9187,2987.0,2986.5,0.7338]
[1766336933760,2.135,2987.0,2986.5,0.7338]
[1766336934246,2.9187,2987.0,2986.5,0.7338]
[1766336936461,2.135,2986.9,2986.4,0.438]
[1766336936753,2.013,2986.7,2986.4,0.438]
[1766336936954,2.9187,2986.8,2986.4,0.438]
[1766336937143,2.135,2986.8,2986.4,0.438]
[1766336937343,2.135,2986.8,2986.4,1.1718]
[1766336938444,0.7837,2986.9,2986.4,4.52028153]
[1766336938865,2.9187,2986.9,2986.4,1.1718]
[1766336939374,3.74600061,2986.9,2986.4,1.1718]
[1766336939845,2.135,2986.8,2986.4,1.1718]
[1766336940045,2.135,2986.8,2986.4,0.438]
[1766336940956,2.9187,2986.8,2986.4,0.438]
[1766336941851,2.9187,2986.8,2985.5,0.001]
[1766336941852,2.9187,2986.1,2985.5,0.001]
[1766336942068,2.9187,2986.1,2985.6,0.438]
[1766336942069,2.135,2986.0,2985.6,0.438]
[1766336942262,0.7837,2986.1,2985.6,1.1718]
[1766336942574,2.135,2986.2,2985.6,1.3056]
[1766336942748,2.135,2986.2,2985.6,3.92111631]
[1766336942950,2.135,2986.2,2985.7,0.7338]
[1766336943373,2.9187,2986.2,2985.7,0.7338]
[1766336944058,4.60039649,2986.5,2985.8,0.01341629]
[1766336944378,4.99030785,2987.1,2985.8,0.01341629]
[1766336944379,0.002,2987.4,2986.7,0.7338]
[1766336944540,0.002,2987.4,2986.7,1.0645]
[1766336944541,0.7857,2987.4,2986.7,1.0645]
[1766336944745,0.002,2987.4,2986.9,0.6338]
[1766336944972,0.002,2987.4,2987.0,0.7338]
[1766336945771,0.002,2987.4,2987.1,0.03347728]
[1766336946098,0.002,2987.7,2987.2,0.7631]
[1766336946261,0.002,2987.7,2987.3,1.4091]
[1766336946784,0.002,2987.4,2987.3,1.4091]
[1766336947753,0.002,2987.4,2987.3,0.7631]
[1766336947954,0.002,2987.4,2987.2,0.13408892]
[1766336948689,0.002,2987.4,2987.1,1.2011]
[1766336948867,0.002,2987.4,2987.1,2.20679727]
[1766336949898,0.002,2987.4,2987.1,1.76879727]
[1766336950202,0.7936,2987.2,2986.7,3.34816529]
[1766336950368,2.1905,2987.3,2986.7,4.11126529]
[1766336950553,2.1905,2987.3,2986.8,0.7631]
[1766336951095,0.002,2987.4,2986.9,1.4155]
[1766336951280,0.002,2987.4,2987.0,0.7631]
[1766336952157,0.7956,2987.7,2987.0,0.7631]
[1766336952389,0.53959965,2987.6,2987.1,0.7631]
[1766336953495,2.68009965,2987.6,2987.1,0.7631]
[1766336954295,2.68209965,2987.6,2987.1,0.7631]
[1766336956596,3.47569965,2987.6,2987.0,0.6523]
[1766336956782,3.47569965,2987.6,2987.0,1.4154]
[1766336957405,2.1905,2987.4,2986.5,1.00576807]
[1766336957591,2.9841,2987.0,2986.4,0.439]
[1766336958105,2.9841,2987.0,2986.4,1.2021]
[1766336958607,2.9841,2987.0,2986.4,4.43905139]
[1766336958812,2.1905,2987.3,2986.6,1.4147]
[1766336958978,2.9841,2987.3,2986.6,1.4147]
[1766336959177,4.60039649,2987.4,2986.6,0.7631]
[1766336959378,0.7936,2987.2,2986.6,0.7631]
[1766336959578,2.9841,2987.2,2986.6,0.7631]
[1766336959778,2.1905,2987.3,2986.6,1.93481514]
[1766336960007,2.9841,2987.3,2986.6,1.93481514]
[1766336960311,2.9841,2987.3,2986.6,1.4146]
[1766336962407,2.9841,2987.2,2986.6,0.7631]
[1766336962607,2.9841,2987.1,2986.5,0.001]
[1766336964502,2.9841,2987.1,2986.5,0.7641]
[1766336967524,2.1905,2987.1,2986.6,0.8957]
[1766336968802,3.07,2987.1,2986.6,0.8957]
[1766336971620,2.1905,2987.1,2986.6,0.8957]
[1766336971825,2.1905,2987.1,2986.6,1.5459]
[1766336974621,3.07,2987.1,2986.6,1.5459]
[1766336974830,0.8795,2987.2,2986.6,1.5456]
[1766336974994,2.0944,2987.1,2986.6,0.8957]
[1766336975897,2.0944,2987.1,2986.6,1.5454]
[1766336976730,0.905,2987.1,2986.5,0.001]
[1766336977030,3.0137,2987.0,2986.5,0.439]
[1766336977224,3.0137,2987.0,2986.5,0.9704909]
[1766336979731,0.002,2987.3,2986.5,4.31885635]
[1766336979933,2.1087,2987.1,2986.6,0.8767]
[1766336981232,0.002,2987.3,2986.7,0.8767]
[1766336981599,3.0157,2987.3,2986.7,0.8767]
[1766336983544,2.1087,2987.2,2986.7,0.8767]
[1766336983740,0.002,2987.3,2986.7,0.53133972]
[1766336984048,0.002,2987.3,2986.8,1.5259]
[1766336986645,0.002,2987.3,2987.0,0.8767]
[1766336986816,0.002,2987.3,2986.9,0.438]
[1766336986817,0.907,2987.3,2986.9,0.438]
[1766336987018,3.0137,2987.2,2986.9,0.438]
[1766336988175,3.0137,2987.1,2986.9,0.438]
[1766336990758,3.0157,2987.3,2986.9,0.438]
[1766336991952,2.1087,2987.2,2986.9,0.438]
[1766336993532,3.0137,2987.2,2986.9,0.438]
[1766336995665,3.0157,2987.2,2986.9,0.438]
[1766336996049,2.1107,2987.2,2986.9,0.438]
[1766336996253,0.002,2987.2,2986.9,0.438]
[1766336996634,0.002,2987.2,2986.9,1.3147]
[1766336997766,0.002,2987.2,2986.9,1.84581619]
[1766336997968,0.002,2987.2,2987.0,0.8767]
[1766336999151,0.002,2987.2,2986.9,1.61731619]
[1766336999357,0.002,2987.2,2986.9,0.438]
[1766337000174,2.1107,2987.2,2986.9,0.438]
[1766337000678,0.002,2987.2,2986.9,0.438]
[1766337001679,0.002,2987.3,2987.0,1.5246]
[1766337003569,0.002,2987.6,2987.1,1.5225]
[1766337003854,0.002,2987.6,2987.3,0.8767]
[1766337004049,0.002,2987.6,2987.3,0.438]
[1766337004454,0.002,2987.6,2987.3,1.3147]
[1766337005786,0.002,2987.7,2987.3,1.3147]
[1766337005974,0.002,2987.7,2987.4,0.8797]
[1766337006163,0.002,2987.7,2987.3,1.0836]
[1766337006353,0.002,2987.7,2987.3,0.438]
[1766337006553,0.002,2987.7,2987.3,0.63433]
[1766337007280,2.1158,2987.6,2986.8,4.22775058]
[1766337007463,2.1158,2987.2,2986.6,0.8797]
[1766337007671,2.9864,2987.2,2986.7,0.438]
[1766337011284,2.9864,2987.1,2986.7,0.438]
[1766337011487,2.9864,2987.1,2986.7,0.63442]
[1766337013089,2.9864,2987.1,2986.6,0.8797]
[1766337013090,2.1158,2986.8,2986.5,0.001]
[1766337013292,2.9864,2986.8,2986.5,0.001]
[1766337014490,0.44,2987.2,2986.5,0.001]
[1766337014491,2.9864,2987.0,2986.5,0.001]
[1766337014658,0.002,2987.2,2986.8,0.8797]
[1766337015757,0.002,2987.2,2986.9,0.8797]
[1766337017189,0.002,2987.2,2986.9,1.36638716]
[1766337017359,0.002,2987.2,2986.9,0.8797]
[1766337019484,0.002,2987.2,2986.9,0.001]
[1766337020794,0.002,2987.2,2986.9,0.8807]
[1766337020991,2.1158,2987.5,2987.0,0.8797]
[1766337021488,0.002,2987.6,2987.2,0.8797]
[1766337023170,0.002,2987.6,2987.2,1.514]
[1766337023386,0.002,2987.6,2987.3,0.8797]
[1766337023586,2.1178,2987.6,2987.0,0.8797]
[1766337023788,2.1178,2987.6,2987.1,1.36593504]
[1766337024103,2.1178,2987.6,2987.1,0.8797]
[1766337027916,0.002,2987.6,2987.0,3.34776738]
[1766337028120,0.002,2987.6,2987.1,1.4877]
[1766337028282,0.002,2987.6,2987.2,0.8571]
[1766337028614,0.002,2987.6,2987.2,1.34064705]
[1766337030518,0.002,2987.6,2987.3,0.6288]
[1766337030691,0.002,2987.6,2987.4,0.8571]
[1766337031020,0.002,2987.6,2987.1,0.6288]
[1766337031213,0.002,2987.6,2987.2,0.8571]
[1766337031383,0.002,2987.6,2987.2,1.34056377]
[1766337032714,0.002,2987.6,2987.2,1.77856377]
[1766337034019,2.0399,2987.6,2987.2,1.77856377]
[1766337035720,2.0399,2987.6,2987.0,3.34880061]
[1766337035721,2.1392,2987.4,2987.0,0.001]
[1766337035895,2.9371,2987.4,2987.0,0.001]
[1766337039218,2.9371,2987.4,2987.0,0.61700295]
[1766337040004,2.1392,2987.4,2987.0,1.44060295]
[1766337042229,0.002,2987.6,2987.1,2.3736]
[1766337042618,2.1412,2987.6,2987.1,2.3736]
[1766337042822,2.9391,2987.6,2987.1,2.3736]
[1766337043427,2.9391,2987.6,2987.0,0.001]
[1766337043428,2.1392,2987.5,2987.0,0.001]
[1766337043621,0.7979,2987.2,2986.9,0.001]
[1766337043828,0.44,2987.6,2986.5,5.33938219]
[1766337044213,2.1392,2987.5,2986.5,6.16298219]
[1766337044522,2.1392,2987.4,2986.5,2.8146]
[1766337044730,2.1392,2987.5,2986.9,4.90135265]
[1766337044893,2.5772,2987.5,2986.9,5.72495265]
[1766337045098,3.3751,2987.5,2987.0,0.8236]
[1766337045430,3.3751,2987.5,2987.1,0.03347728]
[1766337045624,0.002,2987.6,2987.1,0.03347728]
[1766337045625,0.002,2987.6,2987.1,1.43292027]
[1766337045825,0.002,2987.6,2987.2,0.8236]
[1766337046030,0.002,2987.6,2987.2,2.3776]
[1766337046235,0.002,2987.6,2987.3,0.8236]
[1766337046537,0.002,2987.6,2987.3,2.3776]
[1766337046832,0.002,2987.6,2987.3,3.00771602]
[1766337047337,0.002,2987.6,2987.5,0.8236]
[1766337047999,0.7979,2988.0,2987.3,0.63011602]
[1766337048200,0.7979,2988.0,2987.1,0.57584299]
[1766337048201,2.9371,2987.7,2987.1,0.57584299]
[1766337048501,2.1392,2987.5,2986.9,0.001]
[1766337048821,2.1392,2987.4,2986.9,0.001]
[1766337049134,2.9371,2987.4,2986.9,4.17249205]
[1766337049531,2.9371,2987.6,2987.0,2.379]
[1766337049738,3.3751,2987.8,2987.2,0.8236]
[1766337050232,2.9371,2987.8,2987.2,0.8236]
[1766337050431,2.1392,2987.7,2987.2,1.39632003]
[1766337051006,2.1392,2987.7,2987.2,2.95252003]
[1766337051933,0.7979,2987.8,2987.2,0.57272003]
[1766337052126,2.1392,2987.9,2987.4,0.8236]
[1766337052545,2.1392,2987.9,2987.4,2.3803]
[1766337052850,2.9371,2987.9,2987.4,3.01036175]
[1766337053056,2.9371,2987.9,2987.4,1.45366175]
[1766337054047,0.002,2987.7,2987.4,1.45366175]
[1766337055565,0.438,2988.1,2987.4,3.01166175]
[1766337055566,2.9371,2988.0,2987.4,3.01166175]
[1766337055864,0.438,2988.1,2987.4,1.45366175]
[1766337056263,0.7979,2987.9,2987.4,0.63006175]
[1766337056562,2.9371,2987.7,2987.2,2.13122003]
[1766337056921,2.9371,2987.7,2987.2,2.95482003]
[1766337057163,2.9371,2987.7,2987.2,5.478832]
[1766337057451,2.9371,2987.7,2987.3,0.8236]
[1766337059218,0.438,2988.1,2987.3,4.17110439]
[1766337059418,0.438,2988.1,2987.4,1.29798244]
[1766337060419,0.438,2988.1,2987.4,0.47438244]
[1766337060826,0.438,2988.1,2987.2,0.57272003]
[1766337061239,2.9371,2988.0,2987.2,0.57272003]
[1766337061438,0.7979,2987.7,2987.1,0.001]
[1766337061622,2.1392,2987.4,2987.1,0.001]
[1766337062345,2.1392,2987.4,2987.1,3.34872492]
[1766337062958,2.1392,2987.4,2987.1,0.001]
[1766337063157,2.1392,2987.4,2987.2,0.41723948]
[1766337063554,0.44,2987.7,2987.2,0.41723948]
[1766337063759,2.1392,2987.6,2987.2,0.41723948]
[1766337064631,2.9371,2987.4,2987.1,0.001]
[1766337067756,0.44,2987.7,2987.1,0.001]
[1766337067950,2.1187,2987.2,2986.9,0.001]
[1766337068152,2.9995,2987.2,2986.9,0.001]
[1766337069260,0.8808,2987.2,2986.9,0.001]
[1766337069449,2.1187,2987.1,2987.0,0.001]
[1766337069625,2.1187,2987.1,2986.9,0.001]
[1766337069831,1.45660625,2987.1,2986.9,0.001]
[1766337070029,0.8808,2987.1,2986.9,0.001]
[1766337071853,0.8808,2987.1,2986.5,0.001]
[1766337071854,2.1187,2987.0,2986.5,0.001]
[1766337072055,2.1187,2987.0,2986.5,0.8251]
[1766337072250,2.1187,2987.0,2986.6,0.63716005]
[1766337072656,2.9995,2987.0,2986.6,0.63716005]
[1766337073238,0.8808,2987.0,2986.6,0.63716005]
[1766337073437,2.9995,2987.0,2986.6,0.63716005]
[1766337075759,2.9995,2987.0,2986.6,4.8095369]
[1766337075964,2.9995,2987.0,2986.7,0.70075369]
[1766337076535,2.1187,2987.2,2986.7,1.52485369]
[1766337076962,2.9995,2987.2,2986.7,1.52485369]
[1766337077537,2.1187,2987.1,2986.7,0.70075369]
[1766337077737,2.9995,2987.1,2986.6,6.36935257]
[1766337078474,2.1187,2987.1,2986.7,3.0211]
[1766337078668,1.3188,2987.3,2986.8,3.0211]
[1766337078867,3.4375,2987.3,2986.8,3.0211]
[1766337080052,2.9995,2987.2,2986.6,3.0211]
[1766337080285,2.9995,2987.2,2986.7,1.12631]
[1766337080579,2.9995,2987.2,2986.7,3.32331]
[1766337081181,2.1187,2987.1,2986.7,3.32331]
[1766337082180,0.8808,2987.2,2986.7,6.67148078]
[1766337082855,0.8808,2987.2,2986.7,3.32331]
[1766337083051,2.5567,2987.3,2986.7,3.65037988]
[1766337083354,0.002,2987.4,2987.1,2.197]
[1766337083555,0.002,2987.4,2987.1,3.0211]
[1766337084380,0.002,2987.4,2987.1,0.8241]
[1766337084579,3.0015,2987.4,2986.8,3.0211]
[1766337084782,2.1187,2987.3,2986.7,0.30221]
[1766337084984,2.9995,2987.2,2986.7,0.30221]
[1766337085167,2.9995,2987.2,2986.8,3.72428608]
[1766337085367,2.1187,2987.2,2986.8,3.72428608]
[1766337085663,0.002,2987.4,2986.8,0.376231]
[1766337085867,2.9676,2987.1,2986.6,0.439]
[1766337086070,2.9676,2987.1,2986.6,3.78727614]
[1766337086459,2.9676,2987.1,2986.6,6.82267614]
[1766337090064,0.002,2987.4,2986.6,6.82267614]
[1766337090264,2.1458,2987.3,2986.8,0.8775]
[1766337090464,2.9676,2987.3,2986.8,0.8775]
[1766337090688,0.8218,2987.3,2986.8,0.8775]
[1766337090864,0.8218,2987.3,2986.8,1.55976761]
[1766337090865,2.1458,2987.2,2986.8,1.55976761]
[1766337092299,0.8218,2987.0,2986.6,0.439]
[1766337092473,2.1458,2986.9,2986.6,0.439]
[1766337093378,2.9676,2986.9,2986.6,0.439]
[1766337094376,2.9676,2986.9,2986.6,3.78728549]
[1766337094585,2.1458,2986.9,2986.6,3.78728549]
[1766337094777,2.1458,2986.9,2986.6,5.17650452]
[1766337094986,2.9676,2987.1,2986.6,5.17650452]
[1766337095373,2.9676,2987.1,2986.6,1.82821903]
[1766337095984,2.1276,2987.0,2986.6,1.82821903]
[1766337096171,2.935,2987.0,2986.6,1.82821903]
[1766337096894,0.8074,2987.0,2986.6,1.82821903]
[1766337097101,2.935,2986.9,2986.6,0.439]
[1766337098196,0.8074,2986.9,2986.6,0.439]
[1766337098399,0.438,2987.3,2986.6,0.439]
[1766337098400,2.935,2986.8,2986.6,0.439]
[1766337099601,0.8074,2986.7,2986.4,0.001]
[1766337099788,2.1276,2986.9,2986.1,0.438]
[1766337100096,2.1276,2986.5,2986.1,0.438]
[1766337101004,2.1276,2986.5,2986.1,3.7868447]
[1766337103025,2.1276,2986.5,2986.1,0.438]
[1766337103316,2.1276,2986.5,2986.1,3.78684505]
[1766337103514,2.1276,2986.5,2986.1,1.44414094]
[1766337104417,0.438,2986.9,2986.1,0.438]
[1766337104921,0.8074,2986.7,2986.1,0.438]
[1766337105223,0.8074,2986.6,2986.1,3.78684712]
[1766337105418,2.1276,2986.5,2986.1,0.438]
[1766337106322,2.1276,2986.5,2986.1,3.78684069]
[1766337106530,2.1276,2986.7,2986.2,3.76193347]
[1766337108922,2.935,2986.7,2986.2,3.76193347]
[1766337109293,2.1276,2986.6,2986.2,3.76193347]
[1766337113332,2.1276,2986.6,2986.2,7.11066305]
[1766337118013,0.8074,2986.7,2986.2,7.11066305]
[1766337118219,2.1276,2986.8,2986.3,2.9235]
[1766337119143,2.1276,2986.8,2986.3,6.27208899]
[1766337120638,1.2454,2986.9,2986.3,4.43842441]
[1766337120839,0.002,2987.1,2986.5,0.8151]
[1766337121043,0.44,2987.1,2986.7,2.9235]
[1766337121226,0.002,2987.1,2986.7,2.9235]
[1766337121432,2.937,2987.1,2986.5,6.2718587]
[1766337121632,0.8094,2987.1,2986.5,6.2718587]
[1766337121858,0.8094,2987.1,2986.6,2.9235]
[1766337122466,2.1276,2987.0,2986.6,2.9235]
[1766337123013,0.002,2987.1,2986.7,4.596438]
[1766337123258,0.002,2987.4,2987.2,0.8151]
[1766337123560,0.002,2987.4,2987.1,2.1084]
[1766337123732,0.002,2987.4,2987.1,2.40075]
[1766337123937,0.002,2987.4,2987.1,3.21585]
[1766337125163,0.002,2987.4,2987.1,6.56356502]
[1766337126145,0.002,2987.4,2987.1,3.21585]
[1766337126457,0.002,2987.4,2987.1,6.56357785]
[1766337126966,0.002,2987.4,2987.1,3.21585]
[1766337128659,0.002,2987.4,2987.1,0.29235]
[1766337129736,0.8712,2987.3,2986.9,0.438]
[1766337129936,2.3292,2987.2,2986.9,0.438]
[1766337130142,0.8712,2987.3,2987.0,0.001]
[1766337130859,2.3312,2987.4,2987.0,0.001]
[1766337131066,2.3312,2987.4,2987.0,3.34883826]
[1766337131263,0.002,2987.4,2987.0,4.56381847]
[1766337131569,0.002,2987.4,2987.1,3.0029]
[1766337132768,0.002,2987.4,2987.0,11.17224207]
[1766337132971,0.002,2987.4,2987.1,3.0029]
[1766337134048,0.002,2987.4,2987.0,3.22798021]
[1766337134247,0.002,2987.4,2987.0,2.013]
[1766337135281,2.3312,2987.4,2987.0,2.013]
[1766337136350,2.3312,2987.4,2987.0,2.8304]
[1766337136551,2.3312,2987.4,2987.0,2.013]
[1766337136792,3.2024,2987.4,2987.0,2.013]
[1766337137055,0.002,2987.4,2987.0,5.93988951]
[1766337138899,2.3312,2987.4,2987.0,5.93988951]
[1766337139103,2.3312,2987.4,2987.0,5.0159]
[1766337142090,3.2024,2987.4,2987.0,2.013]
[1766337142994,2.3312,2987.4,2987.0,2.8304]
[1766337143195,0.002,2987.4,2987.1,0.8174]
[1766337143367,0.002,2987.4,2987.1,3.0029]
[1766337143964,0.002,2987.4,2987.2,3.0029]
[1766337146096,0.002,2987.4,2987.0,5.0518]
[1766337147281,0.002,2987.4,2987.1,3.0388]
[1766337147488,0.002,2987.4,2987.1,6.38651201]
[1766337147885,0.002,2987.4,2987.1,3.0388]
[1766337148111,0.002,2987.4,2987.1,4.30115364]
[1766337151830,0.002,2987.4,2987.1,7.64887088]
[1766337152013,3.3658,2988.1,2987.4,2.1969]
[1766337152185,2.9278,2988.0,2987.5,3.0388]
[1766337152380,2.106,2987.9,2987.3,2.012]
[1766337152586,2.9278,2987.9,2987.3,5.81356434]